bitfinex-derivatives/quotes_ETHF0:USTF0_20210102
["timestamp","ask_amount","ask_price","bid_price","bid_amount"]
[1609574688192,6.01438,736.54,736.42,6.01438]
[1609574691996,1.32552055,736.69,736.42,6.01438]
[1609574692197,6.01438,736.65,736.42,8.98838]
[1609574694199,6.01438,736.57,736.42,8.98838]
[1609574695201,1.32552339,736.7,736.42,8.98838]
[1609574695807,1.32543038,736.69,736.42,8.98838]
[1609574696203,6.01438,736.55,736.42,8.98838]
[1609574696904,1.32543038,736.69,736.42,8.98838]
[1609574697207,12.6606,736.72,736.42,8.98838]
[1609574698307,6.01438,736.53,736.42,8.98838]
[1609574702210,6.01438,736.53,736.51,6.01438]
[1609574702411,12.6606,736.72,736.51,6.01438]
[1609574704213,6.01438,736.67,736.51,6.01438]
[1609574706215,6.01438,736.67,736.6,6.01438]
[1609574706415,6.01438,736.67,736.6,10.82038]
[1609574710921,6.01438,736.67,736.6,4.806]
[1609574711423,6.01438,736.67,736.49,83.6726]
[1609574712321,6.01438,736.67,736.54,6.01438]
[1609574728345,92.13068,736.55,736.42,2.974]
[1609574728544,92.13068,736.55,736.1,14.65381855]
[1609574728747,15.0,736.54,736.1,14.65381855]
[1609574728946,92.13068,736.55,736.1,14.65381855]
[1609574729147,92.13068,736.55,736.1,18.45181855]
[1609574729545,92.13068,736.55,736.1,3.798]
[1609574729945,2.7014,736.54,736.1,3.798]
[1609574730147,1.32600332,736.51,736.1,3.798]
[1609574730348,6.01438,736.28,736.19,6.01438]
[1609574731546,6.01438,736.28,736.1,3.798]
[1609574734351,6.01438,736.19,736.11,6.01438]
[1609574740062,6.01438,736.19,736.1,3.798]
[1609574740259,6.01438,736.19,735.79,96.9015]
[1609574740461,6.01438,736.1,736.03,6.01438]
[1609574743562,6.01438,736.1,735.75,15.0]
[1609574743763,6.01438,736.1,735.74,14.71818716]
[1609574744363,6.01438,735.84,735.82,6.01438]
[1609574745364,6.01438,735.84,735.83,11.7135]
[1609574745566,86.7897,736.3,735.83,15.5965]
[1609574745766,1.32638728,736.26,735.83,3.883]
[1609574746365,6.01438,736.08,735.94,6.01438]
[1609574764490,6.01438,736.0,735.94,6.01438]
[1609574765290,1.98989302,736.27,735.94,6.01438]
[1609574766293,1.98989302,736.27,735.83,3.883]
[1609574766497,1.98989302,736.27,735.71,89.5112]
[1609574766696,6.01438,735.91,735.83,6.01438]
[1609574768294,6.01438,735.91,735.71,89.5112]
[1609574768498,6.01438,735.81,735.71,95.52558]
[1609574769198,6.01438,735.81,735.71,6.01438]
[1609574769600,6.01438,735.81,735.46,77.1618]
[1609574770500,6.01438,735.81,735.66,6.01438]
[1609574772602,6.01438,735.73,735.66,6.01438]
[1609574775906,6.01438,735.73,735.72,99.4868]
[1609574776806,1.99056228,736.06,735.72,99.4868]
[1609574777107,1.99052847,736.08,735.72,99.4868]
[1609574778108,3.78708074,736.09,735.72,99.4868]
[1609574778707,6.01438,735.78,735.72,99.4868]
[1609574780009,3.78708074,736.09,735.72,99.4868]
[1609574780509,6.01438,735.81,735.78,6.01438]
[1609574781113,13.18319802,736.1,735.78,6.01438]
[1609574781413,1.99049802,736.1,735.78,6.01438]
[1609574781815,6.40544108,736.11,735.78,6.01438]
[1609574782517,4.415,736.11,735.78,6.01438]
[1609574782727,6.01438,735.95,735.78,6.01438]
[1609574784621,6.01438,735.95,735.92,6.01438]
[1609574786824,6.01438,735.95,735.72,99.4868]
[1609574788627,6.01438,735.95,735.84,6.01438]
[1609574792631,6.01438,735.95,735.87,14.866]
[1609574798637,6.01438,735.95,735.92,6.01438]
[1609574799640,6.01438,735.95,735.87,14.866]
[1609574800640,6.01438,735.95,735.84,6.01438]
[1609574811149,6.01438,735.95,735.7,97.9246]
[1609574812649,6.01438,735.83,735.7,103.93898]
[1609574814150,6.01438,735.83,735.7,6.01438]
[1609574816652,6.01438,735.75,735.64,3.123]
[1609574816852,6.01438,735.75,735.55,6.01438]
[1609574818655,6.01438,735.64,735.55,6.01438]
[1609574819755,6.01438,735.64,735.47,83.2806]
[1609574821555,6.01438,735.64,735.39,6.01438]
[1609574822656,6.01438,735.4,735.31,6.01438]
[1609574825657,6.01438,735.4,735.31,20.51308]
[1609574826459,0.1659436,735.58,735.31,20.51308]
[1609574826659,6.01438,735.5,735.43,6.01438]
[1609574827361,0.1659327,735.59,735.43,6.01438]
[1609574827962,0.16593292,735.65,735.43,6.01438]
[1609574828762,6.01438,735.58,735.43,6.01438]
[1609574829965,6.01438,735.58,735.32,4.234]
[1609574830765,6.01438,735.58,735.37,6.01438]
[1609574833872,0.16594678,735.56,735.37,6.01438]
[1609574834271,0.16594678,735.56,735.32,4.234]
[1609574834472,102.1691,735.52,734.97,95.0643]
[1609574834772,6.01438,735.29,735.15,6.01438]
[1609574839478,89.665,735.23,734.92,14.8682125]
[1609574839878,89.665,735.23,734.91,14.87727561]
[1609574840777,6.01438,735.1,735.06,6.01438]
[1609574842077,6.01438,735.1,734.79,14.8919942]
[1609574842078,12.5679,735.09,734.79,14.8919942]
[1609574842277,6.01438,735.1,734.79,14.8919942]
[1609574842478,89.5726,735.03,734.79,18.3629942]
[1609574842678,89.5726,735.03,734.79,3.471]
[1609574842879,6.01438,734.99,734.96,6.01438]
[1609574853689,6.01438,734.99,734.79,3.471]
[1609574853893,6.01438,734.99,734.55,14.91002799]
[1609574854892,6.01438,734.85,734.69,6.01438]
[1609574855692,6.01438,734.85,734.54,14.91104973]
[1609574856693,6.01438,734.85,734.51,14.90374992]
[1609574856894,6.01438,734.85,734.62,6.01438]
[1609574857097,6.01438,734.85,734.62,9.37938]
[1609574862606,80.8721,734.66,734.62,9.37938]
[1609574865505,80.8721,734.66,734.62,3.365]
[1609574865705,80.8721,734.66,734.41,14.92502051]
[1609574865907,0.4,734.62,734.41,14.92502051]
[1609574866106,0.4,734.62,734.38,14.93154087]
[1609574866908,0.4,734.62,734.45,6.01438]
[1609574869109,6.01438,734.46,734.45,6.01438]
[1609574876316,0.4,734.62,734.45,6.01438]
[1609574877116,6.01438,734.5,734.45,6.01438]
[1609574879418,6.01438,734.5,734.42,3.288]
[1609574879620,6.01438,734.5,734.23,14.95355226]
[1609574879819,6.01438,734.5,734.24,14.95477318]
[1609574880025,6.01438,734.5,734.24,18.92877318]
[1609574880920,6.01438,734.5,734.24,3.974]
[1609574881319,0.4,734.62,734.32,6.01438]
[1609574883221,6.01438,734.33,734.32,6.01438]
[1609574886125,0.3505,734.61,734.32,6.01438]
[1609574887325,6.01438,734.54,734.32,6.01438]
[1609574889333,6.01438,734.54,734.42,6.01438]
[1609574889529,6.01438,734.54,734.42,9.06138]
[1609574890431,0.3505,734.61,734.42,9.06138]
[1609574891431,6.01438,734.55,734.42,9.06138]
[1609574897533,6.01438,734.55,734.5,6.01438]
[1609574901040,0.3505,734.61,734.42,3.047]
[1609574901239,0.3505,734.61,734.24,3.974]
[1609574901539,6.01438,734.6,734.51,6.01438]
[1609574902541,0.3505,734.61,734.51,6.01438]
[1609574902940,0.3505,734.61,734.51,10.45938]
[1609574903741,6.01438,734.56,734.51,10.45938]
[1609574908147,6.01438,734.56,734.51,4.445]
[1609574908347,6.01438,734.56,734.24,3.974]
[1609574908752,6.01438,734.56,734.12,15.0]
[1609574909448,5.99052429,734.56,734.12,15.0]
[1609574909649,6.01438,734.48,734.41,6.01438]
[1609574912451,0.16618146,734.66,734.47,80.8855]
[1609574913250,0.16618146,734.66,734.48,15.0]
[1609574913652,0.16618146,734.66,734.65,6.01438]
[1609574914552,1.9937313,734.67,734.65,6.01438]
[1609574915154,0.16612693,734.91,734.65,6.01438]
[1609574915757,0.16612693,734.91,734.9,6.01438]
[1609574915957,0.16612573,734.94,734.9,6.00571616]
[1609574918262,0.16611387,735.03,734.9,6.00571616]
[1609574919261,0.16611421,735.04,734.9,6.00571616]
[1609574919466,5.84537048,735.11,734.9,6.00571616]
[1609574919662,0.1661149,735.04,734.9,6.00571616]
[1609574920465,0.1661149,735.04,734.68,4.791]
[1609574921668,0.16612492,734.99,734.57,106.3912]
[1609574922069,6.01438,734.9,734.66,6.01438]
[1609574923969,6.01438,734.9,734.76,6.01438]
[1609574924272,6.01438,734.9,734.76,9.22438]
[1609574924970,6.01438,734.9,734.76,3.21]
[1609574929575,6.01438,734.9,734.75,6.01438]
[1609574929977,6.01438,734.9,734.57,106.3912]
[1609574931977,6.01438,734.77,734.57,106.3912]
[1609574933679,6.01438,734.77,734.53,10.03338]
[1609574935985,6.01438,734.64,734.53,10.03338]
[1609574940486,0.16619271,734.73,734.53,4.019]
[1609574940987,0.16619271,734.73,734.3,92.3949]
[1609574942085,0.16619271,734.73,734.54,6.01438]
[1609574942086,6.01438,734.62,734.54,6.01438]
[1609574942485,6.01438,734.62,734.3,92.3949]
[1609574944089,6.01438,734.62,734.48,6.01438]
[1609574944291,0.16620048,734.69,734.48,6.01438]
[1609574944888,0.16620672,734.68,734.48,6.01438]
[1609574945988,15.0,734.79,734.48,6.01438]
[1609574945989,0.16620889,734.63,734.48,6.01438]
[1609574946187,6.01438,734.53,734.48,6.01438]
[1609574951592,0.16621644,734.6,734.48,6.01438]
[1609574951792,0.16621386,734.59,734.48,6.01438]
[1609574952493,6.01438,734.61,734.48,6.01438]
[1609574954399,6.1805914,734.61,734.48,6.01438]
[1609574956809,6.01438,734.61,734.48,6.01438]
[1609574962315,6.01438,734.49,734.48,6.01438]
[1609574976136,0.16621705,734.58,734.47,3.128]
[1609574976335,0.16621705,734.58,734.22,96.6151]
[1609574976739,6.01438,734.5,734.44,6.01438]
[1609574980940,6.01438,734.5,734.15,96.6481]
[1609574981139,6.01438,734.5,733.99,29.96010994]
[1609574981941,6.01438,734.5,733.99,14.96010994]
[1609574982341,6.01438,734.5,733.98,14.96086735]
[1609574982842,6.01438,734.42,734.34,6.01438]
[1609574986149,14.0121,734.41,733.95,14.96352615]
[1609574986349,108.1441,734.3,733.95,14.96352615]
[1609574986848,6.01438,734.21,734.14,6.01438]
[1609574989451,108.1441,734.3,733.83,29.96620315]
[1609574989651,108.1441,734.3,733.83,34.49520315]
[1609574990853,0.16608659,734.42,733.83,34.49520315]
[1609574991052,6.01438,734.29,734.15,6.01438]
[1609574992156,101.6667,734.16,733.86,14.96518587]
[1609574992555,101.6667,734.16,733.87,14.96440575]
[1609574992954,101.6667,734.16,734.08,6.01438]
[1609574993254,101.6667,734.16,734.08,10.51738]
[1609574994959,6.01438,734.12,734.08,10.51738]
[1609574999063,82.0143,734.11,734.08,10.51738]
[1609575001766,6.01438,734.12,734.08,10.51738]
[1609575003770,100.8701,734.22,734.08,10.51738]
[1609575005168,6.01438,734.13,734.08,10.51738]
[1609575006175,100.8701,734.22,734.08,4.503]
[1609575006375,100.8701,734.22,733.83,19.529]
[1609575007072,6.01438,734.13,734.08,6.01438]
[1609575007272,0.16626901,734.36,734.08,6.01438]
[1609575007475,0.16626901,734.36,734.08,9.69438]
[1609575008078,0.16627729,734.37,734.08,9.69438]
[1609575009079,6.01438,734.36,734.21,6.01438]
[1609575019189,0.16625823,734.45,734.08,3.68]
[1609575019489,0.16625823,734.45,733.99,15.0]
[1609575019690,6.01438,734.31,734.26,6.01438]
[1609575019889,0.16625823,734.45,734.26,6.01438]
[1609575020293,0.16625823,734.45,734.26,10.92538]
[1609575021393,0.1662856,734.44,734.26,10.92538]
[1609575021693,6.01438,734.32,734.26,10.92538]
[1609575025995,103.0245,734.27,734.26,4.911]
[1609575026195,103.0245,734.27,733.87,15.0]
[1609575026797,103.0245,734.27,733.88,14.95597054]
[1609575027196,103.0245,734.27,733.78,14.96611305]
[1609575027796,6.01438,734.0,733.95,6.01438]
[1609575029398,103.0245,734.27,733.77,114.142]
[1609575029597,103.0245,734.27,733.77,117.832]
[1609575029996,6.01438,734.0,733.95,6.01438]
[1609575030198,112.9097,733.96,733.95,6.01438]
[1609575030398,112.9097,733.96,733.77,3.69]
[1609575031902,6.01438,733.78,733.77,3.69]
[1609575033307,18.90278,733.78,733.77,3.69]
[1609575034808,18.90278,733.78,733.52,6.01438]
[1609575036110,6.01438,733.57,733.52,6.01438]
[1609575037011,12.8884,733.78,733.52,6.01438]
[1609575037313,12.8884,733.78,733.52,9.80538]
[1609575038213,6.01438,733.72,733.52,9.80538]
[1609575039112,12.8884,733.78,733.52,9.80538]
[1609575040113,6.01438,733.73,733.52,9.80538]
[1609575044522,98.8721,733.54,733.52,9.80538]
[1609575044920,78.0885,733.53,733.52,9.80538]
[1609575046121,84.10288,733.53,733.52,9.80538]
[1609575047025,6.01438,733.53,733.52,9.80538]
[1609575053032,0.6,733.71,733.52,9.80538]
[1609575054334,6.01438,733.62,733.52,9.80538]
[1609575056339,12.6508,733.59,733.52,9.80538]
[1609575058440,6.01438,733.53,733.52,9.80538]
[1609575064849,104.12128,733.53,733.52,9.80538]
[1609575065049,104.12128,733.53,733.52,3.791]
[1609575065249,104.12128,733.53,733.2,14.97549306]
[1609575066249,15.0,733.52,733.2,14.97549306]
[1609575066450,6.01438,733.21,733.17,14.97888132]
[1609575068052,6.01438,733.21,733.02,6.01438]
[1609575068452,6.01438,733.07,733.02,6.01438]
[1609575076360,6.01438,733.07,732.92,14.98088133]
[1609575076562,114.4511,733.03,732.92,14.98088133]
[1609575077461,6.01438,733.07,732.92,14.98088133]
[1609575077860,6.01438,733.07,732.92,19.26388133]
[1609575078563,0.16527816,733.51,732.99,6.01438]
[1609575079867,0.16529105,733.52,732.99,6.01438]
[1609575080464,6.01438,733.24,732.93,14.98121285]
[1609575081366,6.01438,733.24,732.92,10.29738]
[1609575082567,6.01438,733.09,732.92,10.29738]
[1609575085669,97.0637,733.41,732.92,10.29738]
[1609575086571,6.01438,733.07,732.92,10.29738]
[1609575090579,6.01438,732.96,732.92,10.29738]
[1609575093382,6.01438,732.96,732.92,4.283]
[1609575093581,6.01438,732.96,732.77,14.98347056]
[1609575094184,6.01438,732.96,731.53,3.5033]
[1609575094185,6.01438,732.96,732.72,14.98608165]
[1609575094583,6.01438,732.73,732.72,14.98608165]
[1609575094783,108.3542,732.98,732.72,14.98608165]
[1609575094983,108.3542,732.98,732.72,19.33808165]
[1609575095383,0.16512612,733.31,732.72,19.33808165]
[1609575095586,0.16512612,733.31,732.81,85.5923]
[1609575096285,0.16508282,733.27,732.81,85.5923]
[1609575096686,6.01438,733.16,732.99,6.01438]
[1609575100991,6.01438,733.16,732.73,14.98524237]
[1609575101791,6.01438,733.16,732.72,4.352]
[1609575101991,6.01438,733.16,732.71,14.98550605]
[1609575102591,6.01438,733.16,732.69,14.98637135]
[1609575102791,6.01438,732.94,732.91,6.01438]
[1609575105596,6.01438,732.94,732.61,14.9869041]
[1609575106196,6.01438,732.94,732.3,83.3876]
[1609575106197,6.01438,732.94,732.59,14.9866925]
[1609575106695,6.01438,732.94,732.74,6.01438]
[1609575107096,6.01438,732.94,732.74,10.04038]
[1609575108798,6.01438,732.94,732.74,4.026]
[1609575108998,105.3113,732.75,732.74,4.026]
[1609575110699,111.32568,732.75,732.74,4.026]
[1609575111400,126.32568,732.75,732.74,1.2696]
[1609575111599,131.24268,732.75,732.59,14.99157332]
[1609575111801,131.24268,732.75,732.33,14.9956786]
[1609575112600,131.24268,732.75,732.05,14.99921849]
[1609575112601,0.16434717,732.66,732.05,14.99921849]
[1609575112800,0.16434717,732.66,732.1,6.01438]
[1609575113000,0.16434717,732.66,732.1,9.34838]
[1609575114001,0.6,732.68,732.1,9.34838]
[1609575114002,0.16408516,732.4,732.1,9.34838]
[1609575114804,6.01438,732.22,732.1,9.34838]
[1609575120514,4.17,732.43,732.1,9.34838]
[1609575120712,6.01438,732.34,732.1,9.34838]
[1609575120913,4.538,732.56,732.1,9.34838]
[1609575121313,4.538,732.56,732.1,24.34838]
[1609575121914,0.16415802,732.58,732.1,24.34838]
[1609575122517,0.6,732.68,732.1,24.34838]
[1609575122518,0.6,732.68,732.11,15.0]
[1609575122716,0.6,732.68,732.67,6.01438]
[1609575127125,0.6,732.68,732.59,4.179]
[1609575127326,81.5684,732.6,732.59,4.179]
[1609575128225,0.6,732.68,732.59,4.179]
[1609575128425,0.6,732.68,732.39,3.185]
[1609575128624,0.6,732.68,732.24,14.99690873]
[1609575128825,0.6,732.68,732.62,6.01438]
[1609575129027,0.6,732.68,732.62,9.12938]
[1609575130726,0.6,732.68,732.62,3.115]
[1609575133828,6.01438,732.81,732.62,3.115]
[1609575134129,6.01438,732.81,732.6,6.01438]
[1609575137635,0.16466551,732.91,732.6,6.01438]
[1609575137837,0.16466551,732.91,732.6,9.05238]
[1609575138036,0.16471483,732.88,732.6,9.05238]
[1609575138636,0.16469848,732.87,732.6,9.05238]
[1609575139235,6.01438,732.78,732.6,9.05238]
[1609575143045,0.16455373,732.83,732.6,9.05238]
[1609575145346,0.16455373,732.83,732.68,6.01438]
[1609575147248,6.01438,732.77,732.68,6.01438]
[1609575156560,0.16469696,732.91,732.68,6.01438]
[1609575157064,0.16471995,732.94,732.68,6.01438]
[1609575157262,6.01438,732.92,732.87,6.01438]
[1609575161772,0.16485224,733.0,732.87,6.01438]
[1609575162171,0.16485224,733.0,732.87,9.51638]
[1609575162374,0.16485686,733.01,732.87,9.51638]
[1609575163373,6.01438,732.99,732.87,9.51638]
[1609575165372,6.01438,732.88,732.87,9.51638]
[1609575167876,6.01438,732.88,732.87,3.502]
[1609575168077,6.01438,732.88,732.6,3.038]
[1609575168478,6.01438,732.88,732.51,112.925]
[1609575169483,6.01438,732.74,732.62,6.01438]
[1609575171186,107.671804,732.97,732.62,6.01438]
[1609575171385,6.01438,732.8,732.62,9.78338]
[1609575173088,2.7444,732.79,732.62,9.78338]
[1609575173289,6.01438,732.8,732.62,9.78338]
[1609575173488,6.01438,732.8,732.75,6.01438]
[1609575173887,0.16481951,732.93,732.75,6.01438]
[1609575174392,0.16483356,732.94,732.75,6.01438]
[1609575174994,0.16482135,732.9,732.75,6.01438]
[1609575175393,6.01438,732.77,732.75,6.01438]
[1609575175593,6.01438,732.77,732.62,3.769]
[1609575176692,6.01438,732.77,732.3,14.99181923]
[1609575177393,6.01438,732.77,732.7,6.01438]
[1609575177594,6.01438,732.77,732.7,9.31238]
[1609575184606,0.1648502,732.93,732.7,9.31238]
[1609575185609,0.1648502,732.93,732.82,6.01438]
[1609575187415,0.16469143,732.97,732.82,6.01438]
[1609575187615,6.01438,732.9,732.82,6.01438]
[1609575194520,6.01438,732.9,732.7,3.298]
[1609575194722,6.01438,732.9,732.55,82.7001]
[1609575194921,6.01438,732.9,732.32,14.99159704]
[1609575195121,6.01438,732.9,732.33,14.99182271]
[1609575195522,6.01438,732.9,732.33,4.724]
[1609575195722,6.01438,732.78,732.7,6.01438]
[1609575197023,0.16458684,732.88,732.7,6.01438]
[1609575197722,6.01438,732.79,732.7,6.01438]
[1609575202231,6.01438,732.79,732.68,4.761]
[1609575202431,12.2458,732.77,732.68,4.761]
[1609575202629,6.01438,732.79,732.33,4.724]
[1609575202831,104.3989,732.7,732.11,99.277]
[1609575203430,15.0,732.78,732.1,3.334]
[1609575203630,108.2029,732.55,732.1,3.334]
[1609575203830,6.01438,732.51,732.48,6.01438]
[1609575204630,13.9786,732.49,732.48,6.01438]
[1609575212947,13.9786,732.49,732.1,3.334]
[1609575213248,13.9786,732.49,731.99,14.99718352]
[1609575213651,6.01438,732.51,731.99,14.99718352]
[1609575213850,90.1905,732.46,731.99,4.566]
[1609575214050,6.01438,732.27,732.12,6.01438]
[1609575215952,6.01438,732.27,732.21,6.01438]
[1609575216155,6.01438,732.27,732.21,9.89338]
[1609575221564,6.01438,732.27,732.21,3.879]
[1609575221765,6.01438,732.27,731.99,4.566]
[1609575221965,6.01438,732.27,732.13,6.01438]
[1609575222165,6.01438,732.27,732.13,10.93538]
[1609575223064,13.9451,732.24,732.13,10.93538]
[1609575223271,6.01438,732.27,732.13,10.93538]
[1609575223272,15.0,732.26,732.13,4.921]
[1609575223468,6.01438,732.27,731.76,15.00169637]
[1609575223469,15.0,732.13,731.76,15.00169637]
[1609575223869,15.0,732.13,731.71,15.00915033]
[1609575224069,6.01438,731.72,731.71,15.00915033]
[1609575224472,85.50998,731.72,731.71,15.00915033]
[1609575224672,85.50998,731.72,731.46,6.01438]
[1609575225471,15.0,731.71,731.22,15.0128547]
[1609575225672,85.50998,731.72,731.22,15.0128547]
[1609575225873,6.01438,731.72,731.22,18.0568547]
[1609575226072,6.01438,731.37,731.28,6.01438]
[1609575227374,88.5273,731.53,731.28,6.01438]
[1609575228174,6.01438,731.47,731.38,6.01438]
[1609575231080,6.01438,731.47,731.22,3.044]
[1609575231280,6.01438,731.47,731.2,15.01281185]
[1609575231682,6.01438,731.47,731.14,15.01349029]
[1609575232082,6.01438,731.47,731.4,6.01438]
[1609575232482,3.751,731.75,731.4,6.01438]
[1609575232882,0.16378588,731.83,731.4,6.01438]
[1609575233683,78.2043,731.85,731.4,6.01438]
[1609575233684,0.16385914,731.82,731.4,6.01438]
[1609575233883,3.62185914,731.82,731.4,6.01438]
[1609575234083,6.01438,731.56,731.5,6.01438]
[1609575234485,3.458,731.82,731.5,6.01438]
[1609575236184,6.01438,731.56,731.3,6.01438]
[1609575237585,6.01438,731.56,731.28,4.629]
[1609575237988,6.01438,731.56,731.18,15.01347463]
[1609575238187,6.01438,731.38,731.24,6.01438]
[1609575240888,0.16382055,731.76,731.24,6.01438]
[1609575241089,0.16382055,731.76,731.24,9.21738]
[1609575241892,0.1638684,731.8,731.24,9.21738]
[1609575242094,6.01438,731.65,731.38,6.01438]
[1609575244098,6.01438,731.51,731.47,6.01438]
[1609575244498,3.458,731.82,731.47,6.01438]
[1609575244700,0.16377035,731.77,731.48,86.4927]
[1609575244899,3.14777035,731.77,731.48,86.4927]
[1609575246205,3.14777035,731.77,731.72,6.01438]
[1609575247505,2.984,731.77,731.72,6.01438]
[1609575248808,2.984,731.77,731.62,4.231]
[1609575250008,6.01438,731.84,731.62,4.231]
[1609575250307,6.01438,731.84,731.76,6.01438]
[1609575253613,6.01438,731.84,731.62,4.231]
[1609575253813,6.01438,731.84,731.48,86.4927]
[1609575254012,2.6923,731.83,731.48,86.4927]
[1609575254214,2.7337,731.82,731.48,86.4927]
[1609575254413,2.7337,731.82,731.61,6.01438]
[1609575254813,2.7337,731.82,731.61,9.81238]
[1609575256114,6.01438,731.84,731.61,9.81238]
[1609575256313,6.01438,731.84,731.7,6.01438]
[1609575257113,2.7292,731.83,731.61,3.798]
[1609575257315,2.746,731.82,731.61,3.798]
[1609575257815,6.01438,731.84,731.61,3.798]
[1609575258417,6.01438,731.84,731.64,6.01438]
[1609575258817,2.7128,731.83,731.64,6.01438]
[1609575259019,2.7085,731.82,731.64,6.01438]
[1609575259621,6.01438,731.84,731.64,6.01438]
[1609575260519,6.01438,731.74,731.64,6.01438]
[1609575260719,2.755,731.73,731.64,6.01438]
[1609575261522,6.01438,731.74,731.64,6.01438]
[1609575265327,0.16379318,731.89,731.64,6.01438]
[1609575265728,0.16388483,731.95,731.64,6.01438]
[1609575266028,2.728,731.94,731.64,6.01438]
[1609575266230,0.16388483,731.95,731.64,6.01438]
[1609575266429,6.01438,731.81,731.72,6.01438]
[1609575278748,6.01438,731.73,731.72,6.01438]
[1609575279950,6.01438,731.73,731.61,3.798]
[1609575280151,6.01438,731.73,731.4,4.478]
[1609575280351,6.01438,731.73,731.3,107.1004]
[1609575280754,0.16380793,731.84,731.45,6.01438]
[1609575280951,0.16380793,731.84,731.45,9.76738]
[1609575282154,0.16362151,731.67,731.45,9.76738]
[1609575282759,6.01438,731.52,731.45,9.76738]
[1609575284062,0.16363848,731.69,731.45,9.76738]
[1609575284763,6.01438,731.66,731.53,6.01438]
[1609575286072,6.01438,731.66,731.45,3.753]
[1609575286268,6.01438,731.66,731.3,107.1004]
[1609575286765,6.01438,731.51,731.45,6.01438]
[1609575290767,6.01438,731.51,731.3,107.1004]
[1609575292769,6.01438,731.32,731.3,107.1004]
[1609575292972,6.01438,731.32,731.24,3.203]
[1609575293173,6.01438,731.32,731.23,6.01438]
[1609575296775,0.16381213,731.56,731.23,6.01438]
[1609575296979,6.01438,731.45,731.23,9.64538]
[1609575298979,6.01438,731.24,731.23,9.64538]
[1609575302083,6.01438,731.24,731.23,3.631]
[1609575302282,6.01438,731.24,730.84,84.332]
[1609575302882,0.16376171,731.35,731.08,6.01438]
[1609575303082,0.16376171,731.35,731.08,9.36438]
[1609575303281,0.16377318,731.36,731.08,9.36438]
[1609575303983,0.16376016,731.35,731.08,9.36438]
[1609575304588,0.16376619,731.36,731.08,9.36438]
[1609575304984,6.01438,731.23,731.08,9.36438]
[1609575307787,2.7493,731.22,731.08,3.35]
[1609575307988,95.5125,731.17,731.08,3.35]
[1609575308287,95.5125,731.17,730.75,15.02467274]
[1609575308288,15.0,731.16,730.75,15.02467274]
[1609575308488,95.5125,731.17,730.75,15.02467274]
[1609575308687,95.5125,731.17,730.75,18.27867274]
[1609575308988,6.01438,730.76,730.75,18.27867274]
[1609575309389,6.01438,730.76,730.75,3.254]
[1609575310490,8.73358,730.76,730.75,3.254]
[1609575311493,6.01438,730.76,730.75,3.254]
[1609575312396,8.75878,730.76,730.75,3.254]
[1609575312794,6.01438,730.76,730.75,3.254]
[1609575313795,8.77908,730.76,730.44,15.02947964]
[1609575314098,8.77908,730.76,730.43,21.04480843]
[1609575314394,6.01438,730.76,730.43,21.04480843]
[1609575314594,0.16352785,731.04,730.43,21.04480843]
[1609575314795,0.16352785,731.04,730.54,98.4801]
[1609575314997,0.16347337,730.99,730.71,14.708]
[1609575315395,0.16351461,731.03,730.71,14.708]
[1609575315596,2.88311461,731.03,730.71,14.708]
[1609575315796,0.16351627,731.02,730.71,3.704]
[1609575316196,0.16346966,730.97,730.71,3.704]
[1609575316897,0.16345743,730.96,730.71,3.704]
[1609575317097,6.01438,730.72,730.71,3.704]
[1609575317899,2.7429,730.95,730.71,3.704]
[1609575319101,6.01438,730.87,730.84,6.01438]
[1609575320300,0.16335151,731.03,730.84,6.01438]